Cogmind - Beta 15 @@@ ROGUE MODE // 2025.06.10 @ 01:38:25 Player: Tenderz Result: Destroyed by 58-GXI(R) with Subdweller Machine Gun Performance ------------- Evolutions (0) 0 Regions Visited (3) 600 Robots Destroyed (36) 180 Value Destroyed (695) 695 Prototype IDs (2) 40 Alien Tech Used (0) 0 Bonus (0) 0 TOTAL SCORE: 1515 Bonus ------- None Cogmind --------- Core Integrity 0/250 Matter 176/300 Energy 100/100 System Corruption 1% Temperature Cool (0) Movement Treading (160) Location -10/Subcaves Parts ------- > --- POWER (1) -------- (None) > --- PROPULSION (2) --- Light Treads Aluminum Leg > --- UTILITY (2) ------ Medium Storage Unit Seismic Detector > --- WEAPON (2) ------- Light Assault Rifle Light Cannon > --- INVENTORY (10) --- Aluminum Leg Aluminum Leg Wheel Large Storage Unit Improved Terrain Scanner Hacking Suite Medium Laser Grenade Launcher Rocket Launcher Peak State ------------ > --- POWER ------------ Ion Engine > --- PROPULSION ------- Aluminum Leg Aluminum Leg > --- UTILITY ---------- Small Storage Unit Machine Analyzer > --- WEAPON ----------- Medium Laser Particle Gun > --- INVENTORY -------- Aluminum Leg Aluminum Leg Wheel Wheel Improved Terrain Scanner Seismic Detector Hacking Suite Grenade Launcher [Rating: 11] Favorites ----------- Power Ion Engine Engine Ion Engine Propulsion Light Treads Treads Light Treads Leg Aluminum Leg Utility Machine Analyzer Device Seismic Detector Storage Small Storage Unit Processor Machine Analyzer Protection Weapon Shielding Weapon Medium Laser Energy Gun Medium Laser Ballistic Gun Assault Rifle Ballistic Cannon Light Cannon Launcher Rocket Launcher Build | -11 -10 -10 -10 ------- Run | Yrd Mat Min Sub Slots Evolved . | . . . . Power . | . . . . Propulsion . | . . . . Utility . | . . . . Weapon . | . . . . Parts Attached 26 | 7 13 4 2 Power 3 | . 3 . . Engine 3 | . 3 . . Core . | . . . . Reactor . | . . . . Propulsion 7 | 2 3 1 1 Treads 3 | 2 . . 1 Leg 4 | . 3 1 . Wheel . | . . . . Hover . | . . . . Flight . | . . . . Utility 7 | 3 4 . . Device 1 | 1 . . . Storage 4 | 2 2 . . Processor 1 | . 1 . . Hackware . | . . . . Protection 1 | . 1 . . Artifact . | . . . . Weapon 9 | 2 3 3 1 Energy Gun 3 | . 3 . . Energy Cannon . | . . . . Ballistic Gun 3 | 2 . . 1 Ballistic Cannon 1 | . . 1 . Launcher 2 | . . 2 . Special Weapon . | . . . . Impact Weapon . | . . . . Slashing Weapon . | . . . . Piercing Weapon . | . . . . Special Melee Weapon . | . . . . Unidentified Prototypes . | . . . . Parts Lost 5 | . 4 . 1 Power 2 | . 1 . 1 Propulsion 2 | . 2 . . Utility . | . . . . Weapon 1 | . 1 . . Highest Loss Streak 3 | . 3 . 1 To Critical Strikes . | . . . . Average Backups 8 | 4 8 10 9 Power . | 1 . . . Propulsion 3 | 1 3 3 3 Utility 3 | . 3 4 3 Weapon 1 | . 1 2 3 Tool/Special . | . . . . Unused Backups 7 | . 2 . 5 Power . | . . . . Propulsion 4 | . 2 . 2 Utility 3 | . . . 3 Weapon . | . . . . Tool/Special . | . . . . Average Slot Usage (%) 99 | . 99 100 94 Engine 13 | . 13 14 8 Treads 14 | . 20 . 5 Leg 13 | . 7 28 22 Device 3 | . 4 . 14 Storage 14 | . 14 14 14 Processor 9 | . 8 14 . Energy Gun 13 | . 12 14 8 Ballistic Gun 10 | . 15 . 5 Ballistic Cannon 1 | . . 5 8 Launcher 2 | . . 8 5 Peak Build Rating 11 | 7 11 11 8 Average Rating 9 | 4 9 10 7 On Entrance 7 | . 7 11 10 Naked Turns . | . . . . Heaviest Build 21 | 13 20 21 21 Greatest Support 40 | 40 40 20 20 Greatest Overweight (x) 1 | 1 . 1 1 Average Overweight (x) . | . . . . Largest Inventory Capacity 10 | 8 10 10 10 Average Capacity 8 | 7 8 10 10 Most Carried 10 | 8 10 10 9 Average Carried 8 | 5 8 9 9 Final Capacity 10 | 8 10 10 10 Final Carried 10 | 8 10 10 9 Class Distribution -------------------- 94% | Mutant 5% | Scavenger-Mutant Dominant Class ---------------- Mutant | -10/Materials Mutant | -10/Mines Mutant | -10/Subcaves Resources | -11 -10 -10 -10 ----------- Run | Yrd Mat Min Sub Matter Collected 686 | 251 348 87 . Remotely . | . . . . Salvage Created 903 | 139 693 51 20 Parts 70 | 7 49 10 4 Haulers Intercepted 1 | . 1 . . Recyclers Shooed . | . . . . Parts Field Recycled . | . . . . Retrieved Matter . | . . . . Parts Self-Destructed . | . . . . Prevented . | . . . . Kills | -11 -10 -10 -10 ------- Run | Yrd Mat Min Sub Combat Hostiles Destroyed 24 | . 15 8 1 Guns 15 | . 14 1 . Cannons 2 | . . 1 1 AOE 6 | . . 6 . Classes Destroyed 11 | 2 8 . 1 Worker 3 | . 3 . . Builder 1 | . 1 . . Tunneler 2 | 2 . . . Hauler 1 | . 1 . . Recycler 1 | 1 . . . Mechanic 1 | . 1 . . Operator 1 | . 1 . . Watcher 2 | . 2 . . Swarmer 11 | . 3 8 . Grunt 12 | . 12 . . Subdweller 1 | . . . 1 Best Kill Streak 6 | 2 6 3 1 Combat Bots Only 5 | . 5 3 1 Max Kills in Single Turn 3 | 1 2 3 1 Gunslinging . | . . . . Exploded 3 | . . 3 . Melee . | . . . . Uniques/NPCs Destroyed . | . . . . Combat | -11 -10 -10 -10 -------- Run | Yrd Mat Min Sub Hostile Shots Fired 125 | . 85 29 11 Missed 31 | . 17 10 4 Hits 94 | . 68 19 7 Projectile 94 | . 68 19 7 Critical Strikes 1 | . 1 . . Damage Taken 1221 | . 888 186 147 Core 272 | . 157 70 45 Absorbed by Shields . | . . . . Redirected to Shielding 6 | . 6 . . Core Remaining (%) 100 | 100 . . . Volleys Fired 85 | 7 61 12 5 Largest 2 | 2 2 2 2 Hottest 115 | 40 115 80 50 Shots Fired 162 | 14 122 17 9 Gun 145 | 14 122 5 4 Cannon 10 | . . 5 5 Launcher 7 | . . 7 . Special . | . . . . Kinetic 102 | 14 74 5 9 Thermal 53 | . 48 5 . Explosive 7 | . . 7 . Electromagnetic . | . . . . Robot Hit Streak 11 | 4 8 3 11 Robot Miss Streak 3 | 3 3 2 . Penetration Max . | . . . . Secondary Targets 3 | . 3 . . Max Gunslinging Chain 1 | . 1 . . Shots Hit Robots 109 | 8 84 8 9 Core Hits 55 | 4 40 8 3 Critical Kills . | . . . . Critical Parts Destroyed . | . . . . Critical Strikes 5 | . 5 . . Burn 5 | . 5 . . Melee Attacks . | . . . . Impact . | . . . . Slashing . | . . . . Piercing . | . . . . Sneak Attacks . | . . . . Combat Hostiles . | . . . . Follow-up Attacks . | . . . . Damage Inflicted 1884 | 88 1254 448 94 Guns 1202 | 88 1051 40 23 Cannons 109 | . . 38 71 Explosions 535 | . 165 370 . Melee . | . . . . Ramming 38 | . 38 . . Kinetic 839 | 88 619 38 94 Thermal 472 | . 432 40 . Explosive 535 | . 165 370 . Electromagnetic . | . . . . Impact . | . . . . Slashing . | . . . . Piercing . | . . . . Highest Corruption 1 | . 1 1 1 Average Corruption 1 | . 1 1 1 Corruption Purged . | . . . . Corruption Blocked . | . . . . Effects 15 | . 6 8 1 Message Errors 3 | . 2 1 . Matter Fused 3 | . 1 2 . Energy Discharges 2 | . . 2 . Parts Fused 1 | . 1 . . Data Loss (minor) 2 | . . 2 . Alerts 3 | . 2 1 . Weapon Failures 1 | . . . 1 Overload Shots . | . . . . Overflow Damage 66 | . 26 40 . Projectiles . | . . . . Explosions 66 | . 26 40 . Melee . | . . . . Knockbacks 2 | . . 1 1 Impact . | . . . . Kinetic 2 | . . 1 1 Secondary . | . . . . Self-Inflicted Damage 122 | . 87 35 . Shots 3 | . 2 1 . Rammed 5 | . 5 . . Targets Rammed 10 | . 10 . . Kicked 4 | . 4 . . Crushed 1 | . 1 . . Highest Temperature 215 | . 215 54 . Average Temperature 70 | . 74 25 . Received Heat Transfer 426 | . 420 . 6 Siege Activations . | . . . . Martial Activations . | . . . . Shielding Activations . | . . . . Robots Disrupted . | . . . . Combat Hostiles . | . . . . Robots Corrupted . | . . . . Combat Hostiles . | . . . . Parts Fried . | . . . . Impact Corruptions . | . . . . Robots Melted 1 | . 1 . . Combat Hostiles 1 | . 1 . . Parts Melted 6 | . 5 1 . Heat Transferred 1702 | . 1591 111 . Parts Sabotaged . | . . . . Parts Stolen . | . . . . Parts Stripped . | . . . . Power Chain Reactions . | . . . . Alert | -11 -10 -10 -10 ------- Run | Yrd Mat Min Sub Maximum Alert Level 1 | . 1 . . Low Security (%) 91 | 100 87 100 . Level 1 8 | . 12 . . Level 2 . | . . . . Level 3 . | . . . . Level 4 . | . . . . Level 5 . | . . . . High Security . | . . . . Max Security . | . . . . Peak Influence 240 | 10 240 147 . Initial 70 | . . 70 . Average 75 | 1 77 91 . Influence Increases 832 | 15 533 284 . Destroy 0b10 Robot/C 460 | . 300 160 . Destroy 0b10 Robot/NC 60 | 15 45 . . Destroy Leader 106 | . 76 30 . Successful Hack 39 | . 39 . . Disable Machine 30 | . 30 . . Destroy Structure 62 | . 13 49 . Lose Combat Pursuer 75 | . 30 45 . Influence Decreases 789 | 15 353 332 89 Entered New Map 179 | . . 110 69 Time Decay 560 | 15 313 222 10 Lost Part 50 | . 40 . 10 Squads Dispatched 4 | . 4 . . Investigation 1 | . 1 . . Extermination . | . . . . Reinforcement 3 | . 3 . . Assault . | . . . . Garrison . | . . . . Intercept . | . . . . Searches Triggered . | . . . . Construction Impeded . | . . . . Haulers Reinforced . | . . . . Active Scanning Responses . | . . . . Cargo Convoy Interrupts . | . . . . Stealth | -11 -10 -10 -10 --------- Run | Yrd Mat Min Sub Distress Signals . | . . . . Communications Jammed . | . . . . Distress Signals . | . . . . Times Spotted 38 | . 25 11 2 Peak Tracking Total 4 | . 4 3 2 Tactical Retreats 3 | . 1 2 . Traps | -11 -10 -10 -10 ------- Run | Yrd Mat Min Sub Traps Triggered . | . . . . Indirectly . | . . . . Trap Hack Attempts . | . . . . Triggered . | . . . . Disarmed . | . . . . Reprogrammed . | . . . . Reused . | . . . . Traps Extracted . | . . . . Installed . | . . . . Triggered . | . . . . Machines | -11 -10 -10 -10 ---------- Run | Yrd Mat Min Sub Machines Disabled 2 | . 2 . . Max in Single Turn 2 | . 2 . . Machines Repaired . | . . . . Machines Dismantled . | . . . . Machines Sabotaged . | . . . . Overloaded Fab Kills . | . . . . Hacking | -11 -10 -10 -10 --------- Run | Yrd Mat Min Sub Machines Accessed 6 | . 6 . . Terminals 4 | . 4 . . Fabricators . | . . . . Repair Stations . | . . . . Recycling Units 2 | . 2 . . Scanalyzers . | . . . . Garrison Access . | . . . . Total Hacks 18 | . 18 . . Successful 8 | . 8 . . Failed 10 | . 10 . . Catastrophic 3 | . 3 . . Database Lockouts . | . . . . Manual 11 | . 11 . . Terminals 11 | . 11 . . Fabricators . | . . . . Repair Stations . | . . . . Recycling Units 7 | . 7 . . Scanalyzers . | . . . . Garrison Access . | . . . . Terminal Hacks 5 | . 5 . . Robot Analysis 2 | . 2 . . Prototype ID Bank 1 | . 1 . . Zone Layout 2 | . 2 . . Fabricator Hacks . | . . . . Repair Station Hacks . | . . . . Recycling Unit Hacks . | . . . . Scanalyzer . | . . . . Garrison Access Hacks . | . . . . Unauthorized Hacks 3 | . 3 . . Terminals . | . . . . Fabricators . | . . . . Repair Stations . | . . . . Recycling Units 3 | . 3 . . Monitor 1 | . 1 . . Recyclers 1 | . 1 . . Mask 1 | . 1 . . Scanalyzers . | . . . . Garrison Access . | . . . . Data Cores Recovered . | . . . . Used . | . . . . Hacking Detections 6 | . 6 . . Full Trace Events 3 | . 3 . . Feedback Events 1 | . 1 . . Corruption 1 | . 1 . . Feedback Blocked . | . . . . Robot Schematics Acquired . | . . . . Robots Built . | . . . . Authchips . | . . . . Time . | . . . . Total Robot Build Rating . | . . . . Part Schematics Acquired . | . . . . Parts Built . | . . . . Authchips . | . . . . Time . | . . . . Total Part Build Rating . | . . . . Parts Repaired . | . . . . Time . | . . . . Parts Recycled . | . . . . Recycled Matter . | . . . . Retrieved Matter . | . . . . Retrieved Components . | . . . . Parts Scanalyzed . | . . . . Part Schematics Acquired . | . . . . Parts Damaged . | . . . . Bothacking | -11 -10 -10 -10 ------------ Run | Yrd Mat Min Sub Used RIF Installer . | . . . . Robots Hacked . | . . . . Non-combat . | . . . . Combat . | . . . . Robot Hacks Applied . | . . . . Relay Couplers Released . | . . . . Fabnet Peak Effective % . | . . . . Robots Rewired . | . . . . Allies Hacked . | . . . . Hacks Repelled . | . . . . Allies | -11 -10 -10 -10 -------- Run | Yrd Mat Min Sub Total Allies . | . . . . Largest Group . | . . . . Highest-Rated Group . | . . . . Highest-Rated Ally . | . . . . Total Orders . | . . . . Ally Attacks . | . . . . Total Damage . | . . . . Kills . | . . . . Allies Corrupted . | . . . . Allies Melted . | . . . . Intel | -11 -10 -10 -10 ------- Run | Yrd Mat Min Sub Active Infowar (turns) 1569 | 26 1042 468 33 Seismic 436 | 26 377 . 33 Machine Analysis 1133 | . 665 468 . Robot Analysis Total 2 | . 2 . . Derelict Logs Recovered 1 | . . 1 . Drone Launches . | . . . . Drone Recoveries . | . . . . Exploration | -11 -10 -10 -10 ------------- Run | Yrd Mat Min Sub Turns Passed 1689 | 124 1064 468 33 Spaces Moved 878 | 60 536 275 7 Core 9 | 9 . . . Treads 405 | 51 354 . . Legs 464 | . 182 275 7 Wheels . | . . . . Hover . | . . . . Flight . | . . . . Fastest Speed 50 | 50 120 120 120 Average Speed 147 | 144 146 151 160 Slowest Speed 190 | 160 160 190 190 Overloaded Moves . | . . . . Propulsion Burnouts . | . . . . Robots Hopped . | . . . . Potential Cave-ins . | . . . . Cave-ins Triggered . | . . . . Exploration Rate (%) 34 | 4 69 65 1 Regions Visited 3 Branch Regions 2 Pre-discovered Areas . | . . . . Known Exits Taken . | . . . . Unknown Exits Taken 3 | 1 1 1 . Scrap Searched 1 | . . 1 . Spaces Dug 6 | . . 6 . Terrain Destroyed 76 | . 10 66 . Melee . | . . . . Projectile . | . . . . AOE 76 | . 10 66 . Terrain Rammed . | . . . . Walls Destroyed . | . . . . Machines Disabled . | . . . . Actions | -11 -10 -10 -10 --------- Run | Yrd Mat Min Sub Total 1103 | 82 695 308 18 Wait 70 | 1 52 15 2 Move 875 | 59 535 274 7 Hop . | . . . . Pick Up 19 | 7 11 1 . Fast Attach 10 | 7 2 1 . Attach 6 | . 6 . . Detach 2 | 1 1 . . Swap 14 | . 7 3 4 Drop 12 | . 10 2 . Fire 85 | 7 61 12 5 Melee . | . . . . Ram . | . . . . Kick 4 | . 4 . . Crush 6 | . 6 . . Escape Stasis . | . . . . Rewire . | . . . . Trap . | . . . . Miscellaneous . | . . . . Route ------- -11/Scrapyard -10/Materials (discovered 3 exits: [*Mat x2] / [*Min]) -10/Mines (discovered 2 exits: [*Mat] / [*Sub]) -10/Subcaves History --------- Turn | Location | Event 20 | -11/Scrapyard | Discovered new exit (range 16) 125 | -11/Scrapyard | Entered Materials 312 | -10/Materials | Build established: Mutant 535 | -10/Materials | Discovered new exit (range 8) 593 | -10/Materials | Discovered new exit (range 12) 931 | -10/Materials | Core integrity fell below 50% 968 | -10/Materials | Lost 3 parts (2n1w) 1049 | -10/Materials | Discovered new exit (range 7) 1189 | -10/Materials | Entered Mines 1196 | -10/Mines | Received a Rocket Launcher from a helpful Derelict 1327 | -10/Mines | Learned Materials stockpile data 1447 | -10/Mines | Discovered new exit (range 4) 1459 | -10/Mines | Core integrity fell below 20% 1651 | -10/Mines | Discovered new exit (range 6) 1657 | -10/Mines | Entered Subcaves 1675 | -10/Subcaves | Ambushed by Subdwellers from Twisted Machinery 1690 | -10/Subcaves | Destroyed by 58-GXI(R) with Subdweller Machine Gun Last Messages --------------- 01617_ System corrupted: IFF burst signal emitted. 01628_ S-10 Pest destroyed. 01630_ U-05 Engineer lays Concrete. 01634_ U-05 Engineer builds a Wall. 01638_ U-05 Engineer lays Concrete. 01643_ U-05 Engineer builds a Wall. 01644_ U-05 Engineer lays Concrete. 01647_ The unstable cave ceiling collapses. 01647_ U-05 Engineer builds a Wall. 01648_ U-05 Engineer lays Concrete. 01651_ EXIT=FOUND LOCATION=UNKNOWN AMBIENT_HEAT=-10 GOAL=ESCAPE 01657_ Discarded Machine Analyzer. 01675_ 58-GXI(R) emerges from the Twisted Machinery. 01677_ System corrupted: Lgt. Assault Rifle jammed. 01678_ Ion Engine destroyed. 01682_ 1W-DUF(R) knocked back. 01685_ 1W-DUF(R) destroyed. Map ----- +----------------------------------------------------+ | ?????????????????????????????????????????????????? | | ?????????????????????????????????????????????????? | | ?????????????????????????????????????????????????? | | ?????????????????????????????????????????????????? | | ?????????????????????????????????????????????????? | | ?????????????????????????????????????????????????? | | ?????????????????????????????????????????????????? | | ?????????????????????????????????????????????????? | | ?????????????????????????????????????????????????? | | ?????????????????????????????????????????????????? | | ?????????????????????????????????????????????????? | | ?????????????????????????????????????????????????? | | ?????????????????????????????????????????????????? | | ?????????????????????????????????????????????????? | | ?????????????????????????????????????????????????? | | ?????????????????????????????????????????????????? | | ???????????????????????????###???????????????????? | | ??????????????????????????## #####???????????????? | | ??????????????????????##### " #???????????????? | | ????????????????????### " #???????????????? | | ????????????????????# " ##???????????????? | | ??????????????? "" # # & ###????????????????? | | ??????????????? ###??##?##&###### ?????????? | | ????????????????????????##%R% #????????????? | | ????????????????????????#/%#### #????????????? | | ????????????????????????#@##?????????????????????? | | ????????????????????????# #??????????????????????? | | ????????????????????????#"#??????????????????????? | | ????????????????????????#"#??????????????????????? | | ???????????????????????? ""??????????????????????? | | ???????????????????????? # ??????????????????????? | | ????????????????????????#?#??????????????????????? | | ?????????????????????????????????????????????????? | | ?????????????????????????????????????????????????? | | ?????????????????????????????????????????????????? | | ?????????????????????????????????????????????????? | | ?????????????????????????????????????????????????? | | ?????????????????????????????????????????????????? | | ?????????????????????????????????????????????????? | | ?????????????????????????????????????????????????? | | ?????????????????????????????????????????????????? | | ?????????????????????????????????????????????????? | | ?????????????????????????????????????????????????? | | ?????????????????????????????????????????????????? | | ?????????????????????????????????????????????????? | | ?????????????????????????????????????????????????? | | ?????????????????????????????????????????????????? | | ?????????????????????????????????????????????????? | | ?????????????????????????????????????????????????? | | ?????????????????????????????????????????????????? | +----------------------------------------------------+ Best States ------------- Heat Dissipation 25 Energy Generation 10 Energy Capacity 250 Matter Stores 300 Matter Capacity 300 Sight Range 16 Terrain Scan Density 10 Weapon Shielding 33 Evasion (%) 55 Recoil Reduction 2 Item Schematics ----------------- None Robot Schematics ------------------ None Fabricated ------------ Nothing Repaired ---------- Nothing Alien Tech Used ----------------- None Achievements -------------- None Challenges ------------ None Game ------ Seed EncryptedMetafieldTelecube Manual? 0 Play Time 00:14:15 Cumulative 100.7 hours Start 2025.06.10 @ 00:32:46 End 2025.06.10 @ 01:38:25 Sessions 1 Manual Loads 0 Difficulty Rogue Special Mode None Game No. 62 Rogue 62 Adventurer 0 Explorer 0 Win Type - Total 0 Types 0/0/0/0/0/0/0/0/0/0 Lore% 48 Gallery% 49 Achievement% 44 Wizard Run 0 Options --------- Layout 2 ASCII 0 Keyboard 0 Movement Numpad Keybinds 0 Fullscreen 0 Font 24/Proggy Map View 59x48 Zoom Use 0% Tactical HUD 1 Map Filters NONE Filters NONE Steam 1 RUN: 7520bab9-077b-4b4d-bda2-eca0cbbcfa6a